bitfinex-derivatives/quotes_BTCF0:USTF0_20241221
["timestamp","ask_amount","ask_price","bid_price","bid_amount"]
[1734790126660,0.051298,97504.0,97498.0,0.01199047]
[1734790126860,0.051298,97504.0,97498.0,0.05283833]
[1734790127062,0.10098189,97510.0,97498.0,0.05283833]
[1734790127264,0.051299,97502.0,97498.0,0.05283833]
[1734790127460,0.00010208,97501.0,97498.0,0.05283833]
[1734790128459,0.00010208,97501.0,97498.0,0.05683833]
[1734790129668,0.00110208,97501.0,97498.0,0.05683833]
[1734790129968,0.00210208,97501.0,97498.0,0.05683833]
[1734790130462,0.05340108,97501.0,97498.0,0.00553833]
[1734790130966,0.0513,97499.0,97498.0,0.004]
[1734790132675,0.051311,97478.0,97471.0,0.051315]
[1734790132861,0.412113,97475.0,97467.0,0.01046989]
[1734790133274,0.3608,97475.0,97467.0,0.01046989]
[1734790133461,0.3608,97475.0,97470.0,0.051315]
[1734790133862,0.3608,97475.0,97471.0,0.004]
[1734790134770,0.3608,97475.0,97470.0,0.055315]
[1734790135167,0.051314,97472.0,97470.0,0.004]
[1734790135561,7.778e-05,97471.0,97470.0,0.004]
[1734790136056,7.778e-05,97471.0,97467.0,0.00013258]
[1734790136264,0.051315,97470.0,97467.0,0.00013258]
[1734790136868,0.051316,97469.0,97467.0,0.00013258]
[1734790138459,0.052316,97469.0,97467.0,0.00013258]
[1734790139364,0.051319,97463.0,97462.0,0.00153891]
[1734790139566,0.051319,97463.0,97437.0,0.0941]
[1734790139567,0.3608,97463.0,97439.0,0.01033591]
[1734790139762,0.3608,97463.0,97437.0,0.145432]
[1734790139763,0.051329,97445.0,97437.0,0.145432]
[1734790140364,0.05133,97442.0,97437.0,0.145432]
[1734790140565,0.05133,97442.0,97437.0,0.0941]
[1734790140781,0.051327,97448.0,97440.0,0.051331]
[1734790141071,0.001,97445.0,97440.0,0.051331]
[1734790141774,0.001,97442.0,97440.0,0.051331]
[1734790142275,0.001,97442.0,97437.0,0.0951]
[1734790142276,0.3608,97470.0,97462.0,0.05132]
[1734790142566,0.05132,97462.0,97441.0,0.3608]
[1734790142767,0.05132,97462.0,97456.0,0.051322]
[1734790143071,0.3608,97470.0,97441.0,0.412131]
[1734790143260,0.3608,97481.0,97470.0,0.051315]
[1734790143770,0.051311,97479.0,97470.0,0.051315]
[1734790143969,0.051314,97474.0,97470.0,0.051315]
[1734790144166,0.051318,97465.0,97463.0,0.051319]
[1734790145165,0.36139779,97471.0,97463.0,0.001]
[1734790145368,0.36087778,97471.0,97469.0,0.051316]
[1734790146373,7.778e-05,97471.0,97469.0,0.051316]
[1734790146567,7.778e-05,97471.0,97470.0,0.5435]
[1734790147178,0.00107778,97471.0,97470.0,0.5435]
[1734790147477,0.3608,97481.0,97480.0,0.05131]
[1734790148282,0.36087979,97481.0,97480.0,0.05131]
[1734790148474,0.37120569,97499.0,97480.0,0.41211]
[1734790148775,0.3608,97499.0,97488.0,0.051306]
[1734790148977,0.3608,97508.0,97488.0,0.412106]
[1734790149570,0.00161657,97489.0,97488.0,0.412106]
[1734790150082,0.00361657,97489.0,97488.0,0.412106]
[1734790150669,0.00361657,97489.0,97488.0,0.3608]
[1734790150865,0.00361657,97489.0,97484.0,0.051308]
[1734790151069,0.00361657,97489.0,97487.0,0.051306]
[1734790152876,0.051307,97487.0,97473.0,0.2837546]
[1734790153078,0.00361657,97489.0,97488.0,0.051306]
[1734790154380,0.00461657,97489.0,97488.0,0.051306]
[1734790154582,0.00261657,97489.0,97488.0,0.051306]
[1734790154777,0.00161657,97489.0,97488.0,0.051306]
[1734790154973,0.00161657,97489.0,97488.0,0.053306]
[1734790155368,0.00261657,97489.0,97488.0,0.053306]
[1734790157173,0.00361657,97489.0,97488.0,0.051306]
[1734790157976,0.00261657,97489.0,97488.0,0.051306]
[1734790158173,0.00261657,97489.0,97488.0,0.053306]
[1734790158584,0.12204017,97505.0,97488.0,0.145006]
[1734790158780,0.12204017,97505.0,97504.0,0.051297]
[1734790159679,0.3608,97509.0,97508.0,0.051295]
[1734790161087,0.01078585,97518.0,97517.0,0.051291]
[1734790161282,0.12204017,97519.0,97517.0,0.051291]
[1734790161474,0.41264901,97521.0,97505.0,0.3608]
[1734790161675,0.412089,97521.0,97518.0,0.05129]
[1734790161885,0.051289,97520.0,97518.0,0.05129]
[1734790163481,0.060289,97520.0,97518.0,0.05129]
[1734790163883,0.067289,97520.0,97518.0,0.05129]
[1734790164487,0.016,97520.0,97505.0,0.3608]
[1734790164686,0.051291,97516.0,97514.0,0.051292]
[1734790165593,0.3608,97519.0,97474.0,0.3608]
[1734790165780,0.051303,97493.0,97489.0,0.051305]
[1734790166291,0.0899,97492.0,97489.0,0.051305]
[1734790166689,0.0899,97492.0,97483.0,0.051308]
[1734790166992,0.051309,97482.0,97481.0,0.24328129]
[1734790167294,0.051309,97482.0,97481.0,0.29459129]
[1734790167596,0.051309,97482.0,97481.0,0.05293659]
[1734790167892,0.051309,97482.0,97481.0,0.00162659]
[1734790168690,0.051309,97482.0,97481.0,8.797e-05]
[1734790168991,0.051309,97482.0,97481.0,0.00108797]
[1734790169181,0.051311,97479.0,97452.0,0.3608]
[1734790169377,0.051323,97456.0,97452.0,0.3608]
[1734790169577,0.051323,97456.0,97454.0,0.051323]
[1734790170183,8.797e-05,97455.0,97454.0,0.051323]
[1734790170688,8.797e-05,97455.0,97452.0,0.002]
[1734790170894,0.05141197,97455.0,97454.0,0.002]
[1734790171787,0.05241197,97455.0,97454.0,0.002]
[1734790172383,0.05341197,97455.0,97454.0,0.002]
[1734790172582,0.00208797,97455.0,97454.0,0.002]
[1734790174583,0.05341097,97455.0,97454.0,0.002]
[1734790175187,0.00208797,97455.0,97454.0,0.002]
[1734790175480,0.05241097,97455.0,97454.0,0.053324]
[1734790175683,0.05641097,97455.0,97454.0,0.053324]
[1734790175879,0.05541097,97455.0,97454.0,0.053324]
[1734790176082,0.05641097,97455.0,97454.0,0.053324]
[1734790176479,0.05541097,97455.0,97454.0,0.053324]
[1734790176682,0.05641097,97455.0,97454.0,0.053324]
[1734790176882,0.05641097,97455.0,97454.0,0.002]
[1734790178191,0.06648073,97455.0,97454.0,0.002]
[1734790178391,0.06248073,97455.0,97454.0,0.003]
[1734790179798,0.42328073,97455.0,97454.0,0.003]
[1734790185589,0.00108797,97455.0,97454.0,0.003]
[1734790185807,0.00108797,97455.0,97454.0,0.447]
[1734790186105,0.00108797,97455.0,97454.0,0.0862]
[1734790186597,0.00108797,97455.0,97454.0,0.0964016]
[1734790189699,0.00108797,97455.0,97454.0,0.1818016]
[1734790190008,0.00108797,97455.0,97454.0,0.1972016]
[1734790190189,0.12204017,97484.0,97483.0,0.051308]
[1734790191296,0.3608,97485.0,97483.0,0.051308]
[1734790191492,0.38644,97485.0,97483.0,0.051308]
[1734790191699,0.009,97484.0,97483.0,0.051308]
[1734790191894,0.015,97484.0,97483.0,0.051308]
[1734790192589,0.006,97484.0,97483.0,0.051308]
[1734790193398,0.38896001,97485.0,97483.0,0.051308]
[1734790193599,0.39044,97485.0,97483.0,0.051308]
[1734790193806,0.39864,97485.0,97470.0,0.3608]
[1734790193995,0.051313,97474.0,97472.0,0.051314]
[1734790195203,0.052313,97474.0,97472.0,0.051314]
[1734790195597,0.053313,97474.0,97472.0,0.055314]
[1734790195794,0.053313,97474.0,97472.0,0.004]
[1734790195995,0.052313,97474.0,97466.0,0.01029413]
[1734790196194,0.001,97474.0,97472.0,0.053314]
[1734790196605,0.001,97474.0,97473.0,0.412114]
[1734790197602,0.12204017,97484.0,97483.0,0.051308]
[1734790198800,0.12204017,97484.0,97483.0,0.054308]
[1734790199006,0.03384,97485.0,97483.0,0.054308]
[1734790199198,0.03384,97485.0,97483.0,0.051308]
[1734790199509,0.03384,97485.0,97483.0,0.052308]
[1734790200306,0.03484,97485.0,97484.0,0.00102656]
[1734790200495,0.03897,97485.0,97484.0,0.00102656]
[1734790200699,0.03897,97485.0,97484.0,0.08802656]
[1734790200902,0.03897,97485.0,97484.0,0.17372656]
[1734790201107,0.03997,97485.0,97484.0,0.17372656]
[1734790201806,0.091277,97485.0,97484.0,0.00102656]
[1734790202108,0.092277,97485.0,97484.0,0.00402656]
[1734790202810,0.450077,97485.0,97484.0,0.00502656]
[1734790203111,0.051316,97469.0,97468.0,0.2416547]
[1734790203314,0.412116,97469.0,97466.0,0.051317]
[1734790203902,0.3608,97469.0,97456.0,0.19174718]
[1734790204199,0.39929001,97485.0,97484.0,0.051308]
[1734790204402,0.39877,97485.0,97484.0,0.051308]
[1734790205502,0.39877,97485.0,97484.0,0.053308]
[1734790207113,0.40777,97485.0,97484.0,0.051308]
[1734790207506,0.39877,97485.0,97484.0,0.051308]
[1734790207707,0.39977,97485.0,97484.0,0.051308]
[1734790210221,0.39977,97485.0,97484.0,0.066708]
[1734790210415,0.03897,97485.0,97484.0,0.427508]
[1734790210615,0.03797,97485.0,97484.0,0.427508]
[1734790211116,0.03897,97485.0,97484.0,0.427508]
[1734790211912,0.03897,97485.0,97484.0,0.066708]
[1734790212106,0.03897,97485.0,97484.0,0.051308]
[1734790212515,0.051308,97484.0,97482.0,0.051309]
[1734790212713,0.139908,97484.0,97482.0,0.051309]
[1734790213023,0.05131,97480.0,97476.0,0.051312]
[1734790213215,0.0886,97484.0,97472.0,0.3608]
[1734790213851,0.145908,97484.0,97480.0,0.05131]
[1734790214045,0.0082,97483.0,97480.0,0.05131]
[1734790214835,0.0082,97483.0,97473.0,0.051313]
[1734790215136,0.051312,97477.0,97467.0,0.01039091]
[1734790215341,0.051312,97477.0,97472.0,0.051314]
[1734790215538,0.051312,97477.0,97474.0,0.051313]
[1734790216716,0.051317,97468.0,97465.0,0.051317]
[1734790216914,0.051317,97467.0,97458.0,0.18155663]
[1734790217109,0.051317,97467.0,97465.0,0.051318]
[1734790217813,0.051317,97467.0,97458.0,0.18155663]
[1734790217814,0.051321,97460.0,97458.0,0.18155663]
[1734790218014,0.0851,97459.0,97458.0,0.18155663]
[1734790218711,0.0851,97459.0,97457.0,0.051322]
[1734790218908,0.136421,97459.0,97457.0,0.051322]
[1734790219618,0.0851,97459.0,97457.0,0.051322]
[1734790220721,0.0861,97459.0,97457.0,0.051322]
[1734790221319,0.001,97459.0,97457.0,0.06167519]
[1734790221531,0.09208501,97458.0,97457.0,0.06167519]
[1734790222706,0.001,97459.0,97457.0,0.06167519]
[1734790223110,0.14340101,97468.0,97464.0,0.051318]
[1734790224315,0.09208501,97465.0,97464.0,0.051318]
[1734790225219,0.09619501,97465.0,97464.0,0.051318]
[1734790225613,0.00411,97465.0,97464.0,0.051318]
[1734790226023,0.00387534,97468.0,97467.0,0.051317]
[1734790226216,0.003,97468.0,97467.0,0.351317]
[1734790226419,0.00067,97474.0,97473.0,0.051314]
[1734790226618,0.3608,97508.0,97474.0,0.2734]
[1734790226820,0.3608,97508.0,97486.0,0.051307]
[1734790227125,0.12268768,97491.0,97490.0,0.051305]
[1734790227314,0.12268768,97491.0,97490.0,0.412105]
[1734790228514,0.3608,97508.0,97490.0,0.412105]
[1734790228515,0.3608,97508.0,97507.0,0.051296]
[1734790229828,0.3718,97508.0,97507.0,0.051296]
[1734790231119,0.38,97508.0,97507.0,0.051296]
[1734790232023,0.38,97508.0,97490.0,0.3608]
[1734790232322,0.3608,97499.0,97483.0,0.45563663]
[1734790232522,0.15235679,97500.0,97483.0,0.2734]
[1734790232717,0.15235679,97500.0,97482.0,0.18155663]
[1734790233220,0.15235679,97500.0,97491.0,0.051304]
[1734790233416,0.0868,97499.0,97492.0,0.051304]
[1734790233625,0.0868,97499.0,97482.0,0.19200303]
[1734790234119,0.10105679,97492.0,97489.0,0.051305]
[1734790234326,0.051302,97495.0,97489.0,0.051305]
[1734790234525,0.0868,97499.0,97489.0,0.051305]
[1734790234711,0.412104,97492.0,97489.0,0.051305]
[1734790235624,0.3608,97492.0,97478.0,0.37115527]
[1734790235827,0.051307,97487.0,97481.0,0.051309]
[1734790236026,0.0872,97486.0,97481.0,0.051309]
[1734790236918,0.0872,97486.0,97478.0,0.37115527]
[1734790237220,0.0892,97486.0,97484.0,0.051308]
[1734790238620,0.0872,97486.0,97484.0,0.051308]
[1734790238924,0.0912,97486.0,97484.0,0.051308]
[1734790239322,0.002,97486.0,97484.0,0.052308]
[1734790239714,0.0904,97499.0,97484.0,0.052308]
[1734790239921,0.0904,97499.0,97498.0,0.051301]
[1734790240224,0.0904,97499.0,97498.0,0.412101]
[1734790240524,0.0082,97508.0,97507.0,0.051296]
[1734790240732,0.0082,97508.0,97507.0,0.412096]
[1734790241322,0.1832891,97525.0,97524.0,0.051287]
[1734790241522,0.1832891,97525.0,97524.0,0.412087]
[1734790242129,0.0015387,97542.0,97539.0,0.051279]
[1734790242635,0.051279,97540.0,97532.0,0.051282]
[1734790242833,0.051283,97533.0,97524.0,0.052287]
[1734790243033,0.051283,97533.0,97524.0,0.001]
[1734790243231,0.051283,97533.0,97511.0,0.00153814]
[1734790243530,0.051283,97533.0,97526.0,0.051285]
[1734790244029,0.051284,97530.0,97518.0,0.05129]
[1734790244221,0.3608,97529.0,97513.0,0.3608]
[1734790244425,0.3608,97529.0,97522.0,0.051288]
[1734790244819,0.051286,97527.0,97513.0,0.3608]
[1734790245028,0.10105679,97523.0,97512.0,0.051293]
[1734790245231,0.0852,97522.0,97519.0,0.051289]
[1734790245727,0.0852,97522.0,97521.0,0.051288]
[1734790246529,0.0892,97522.0,97521.0,0.051288]
[1734790247529,0.0892,97522.0,97514.0,0.051292]
[1734790247831,0.3608,97519.0,97514.0,0.051292]
[1734790248027,0.051292,97516.0,97511.0,0.00153814]
[1734790248233,0.0082,97515.0,97511.0,0.00153814]
[1734790248443,0.051294,97511.0,97501.0,0.051299]
[1734790248734,0.412095,97508.0,97501.0,0.051299]
[1734790248932,0.0909,97507.0,97501.0,0.051299]
[1734790250138,0.02563,97506.0,97501.0,0.051299]
[1734790250325,0.02563,97506.0,97504.0,0.051297]
[1734790251635,0.02763,97506.0,97504.0,0.051297]
[1734790252828,0.02863,97506.0,97496.0,0.051301]
[1734790253024,0.051303,97495.0,97493.0,0.00012019]
[1734790253235,0.0846,97494.0,97493.0,0.00012019]
[1734790254127,0.0846,97494.0,97485.0,0.051307]
[1734790254330,0.3608,97490.0,97486.0,0.051307]
[1734790254527,0.412105,97490.0,97486.0,0.051307]
[1734790254822,0.412105,97490.0,97487.0,0.051306]
[1734790255029,0.05139424,97489.0,97487.0,0.051306]
[1734790255631,8.824e-05,97489.0,97487.0,0.051306]
[1734790256528,8.824e-05,97489.0,97487.0,0.052306]
[1734790257330,0.00108824,97489.0,97487.0,0.053306]
[1734790262645,0.00108824,97489.0,97487.0,0.002]
[1734790262946,0.05239424,97489.0,97487.0,0.002]
[1734790264042,0.00108824,97489.0,97487.0,0.053306]
[1734790264747,0.00108824,97489.0,97488.0,0.0873]
[1734790265546,0.00108824,97489.0,97488.0,0.4481]
[1734790265752,0.00108824,97489.0,97488.0,0.5333]
[1734790266332,0.3608,97510.0,97509.0,0.051295]
[1734790266538,0.0916,97517.0,97514.0,0.051292]
[1734790266842,0.15319709,97518.0,97514.0,0.051292]
[1734790267341,0.15319709,97523.0,97514.0,0.051292]
[1734790267938,0.0172,97515.0,97514.0,0.051292]
[1734790268245,0.0172,97515.0,97514.0,0.06163316]
[1734790268450,0.0222,97515.0,97514.0,0.06163316]
[1734790269650,0.0212,97515.0,97514.0,0.06163316]
[1734790269952,0.0212,97515.0,97514.0,0.051292]
[1734790270152,0.0162,97515.0,97514.0,0.051292]
[1734790270649,0.0122,97515.0,97514.0,0.051292]
[1734790270843,0.0162,97515.0,97514.0,0.051292]
[1734790271042,0.0122,97515.0,97514.0,0.051292]
[1734790271251,0.0162,97515.0,97514.0,0.051292]
[1734790276553,0.0244,97515.0,97514.0,0.051292]
[1734790277646,0.0916,97530.0,97529.0,0.051284]
[1734790277949,0.15319709,97543.0,97542.0,0.051277]
[1734790278155,0.15319709,97543.0,97542.0,0.412077]
[1734790278655,0.051278,97542.0,97535.0,0.051281]
[1734790279056,0.051283,97532.0,97527.0,0.051285]
[1734790279351,0.3608,97538.0,97524.0,0.051287]
[1734790279557,0.3608,97538.0,97529.0,0.051284]
[1734790279852,0.3608,97538.0,97523.0,0.18155663]
[1734790280058,0.051283,97531.0,97523.0,0.19178908]
[1734790280357,0.060284,97530.0,97529.0,0.001]
[1734790280544,0.0902,97530.0,97523.0,0.051287]
[1734790280746,0.412087,97524.0,97519.0,0.05129]
[1734790280952,0.3608,97524.0,97513.0,0.2734]
[1734790281150,0.051289,97520.0,97513.0,0.2734]
[1734790281455,0.0082,97523.0,97521.0,0.051288]
[1734790282653,0.063488,97523.0,97521.0,0.051288]
[1734790283049,0.0122,97523.0,97521.0,0.051288]
[1734790283664,0.0766,97522.0,97521.0,0.051288]
[1734790284158,0.0766,97522.0,97521.0,0.052288]
[1734790284351,0.0212,97523.0,97521.0,0.052288]
[1734790284558,0.02776,97523.0,97521.0,0.052288]
[1734790285059,0.01476,97523.0,97521.0,0.056288]
[1734790285459,0.02563,97522.0,97521.0,0.056288]
[1734790285855,0.02563,97522.0,97521.0,0.055288]
[1734790286551,0.02563,97522.0,97521.0,0.354288]
[1734790286861,0.0766,97536.0,97535.0,0.051281]
[1734790287054,0.1564,97555.0,97535.0,0.412081]
[1734790287259,0.079,97555.0,97554.0,0.051271]
[1734790288359,0.0969,97555.0,97554.0,0.053271]
[1734790289659,0.0969,97555.0,97554.0,0.068671]
[1734790290061,0.0969,97555.0,97554.0,0.053271]
[1734790290459,0.051272,97553.0,97550.0,0.051273]
[1734790291769,0.054272,97553.0,97550.0,0.051273]
[1734790292557,0.051275,97548.0,97534.0,0.051282]
[1734790292755,0.003,97553.0,97538.0,0.051279]
[1734790292756,0.051278,97542.0,97538.0,0.051279]
[1734790292962,0.133378,97541.0,97539.0,0.051279]
[1734790293771,0.0821,97541.0,97530.0,0.051284]
[1734790293953,0.0821,97541.0,97520.0,0.18155663]
[1734790293954,0.3608,97535.0,97520.0,0.18155663]
[1734790294158,0.051283,97532.0,97520.0,0.18155663]
[1734790294360,0.3608,97535.0,97520.0,0.18155663]
[1734790294668,0.0901,97541.0,97540.0,0.051278]
[1734790294968,0.008,97541.0,97540.0,0.051278]
[1734790295172,0.005,97541.0,97540.0,0.051278]
[1734790296668,0.48336133,97549.0,97547.0,0.051274]
[1734790297467,0.3608,97549.0,97547.0,0.051274]
[1734790297859,0.3628,97549.0,97547.0,0.051274]
[1734790298055,0.081,97548.0,97547.0,0.051274]
[1734790299673,0.083,97548.0,97547.0,0.051274]
[1734790300162,0.085,97548.0,97547.0,0.051274]
[1734790301267,0.084,97548.0,97547.0,0.051274]
[1734790302567,0.084,97548.0,97539.0,0.051279]
[1734790302763,0.3608,97540.0,97539.0,0.051279]
[1734790303867,0.051282,97533.0,97532.0,0.0102668]
[1734790304571,0.051282,97533.0,97529.0,0.051284]
[1734790304768,0.051283,97531.0,97529.0,0.051284]
[1734790306776,0.052283,97531.0,97529.0,0.051284]
[1734790307674,0.054283,97531.0,97529.0,0.051284]
[1734790309772,0.0082,97530.0,97529.0,0.051284]
[1734790311268,0.0092,97530.0,97529.0,0.051284]
[1734790311472,0.0112,97530.0,97529.0,0.051284]
[1734790312879,0.0092,97530.0,97529.0,0.053284]
[1734790313382,0.051287,97524.0,97523.0,0.051287]
[1734790314071,0.0775,97525.0,97518.0,8.95e-05]
[1734790314271,0.05129,97519.0,97518.0,8.95e-05]
[1734790314470,0.05129,97519.0,97518.0,0.0513795]
[1734790315082,0.05129,97519.0,97518.0,8.95e-05]
[1734790315778,0.05129,97519.0,97518.0,0.0513795]
[1734790316177,0.05229,97519.0,97518.0,0.0573795]
[1734790316474,0.05229,97519.0,97518.0,0.0583795]
[1734790316868,0.05229,97519.0,97518.0,0.0070895]
[1734790317980,0.05229,97519.0,97518.0,0.0080895]
[1734790319670,0.17485133,97519.0,97518.0,0.0080895]
[1734790320375,0.18522921,97519.0,97518.0,0.0080895]
[1734790320981,0.06266788,97519.0,97518.0,0.0080895]
[1734790321985,0.051296,97507.0,97506.0,0.00153823]
[1734790322182,0.3608,97507.0,97487.0,0.18155663]
[1734790322377,0.3608,97496.0,97490.0,0.051305]
[1734790322579,0.051304,97492.0,97490.0,0.051305]
[1734790323082,0.0782,97495.0,97493.0,0.051303]
[1734790324172,0.129502,97495.0,97493.0,0.051303]
[1734790324577,0.051302,97495.0,97493.0,0.051303]
[1734790325589,0.052302,97495.0,97493.0,0.054303]
[1734790326092,0.053302,97495.0,97493.0,0.054303]
[1734790326480,0.002,97495.0,97493.0,0.054303]
[1734790329085,0.3608,97507.0,97506.0,0.051296]
[1734790329776,0.12254482,97512.0,97501.0,0.1488]
[1734790329982,0.12254482,97512.0,97511.0,0.051294]
[1734790330381,0.12254482,97512.0,97501.0,0.1642]
[1734790330382,0.001,97507.0,97506.0,0.056296]
[1734790331082,0.12254482,97522.0,97518.0,0.05129]
[1734790332185,0.20446603,97528.0,97518.0,0.05129]
[1734790332186,0.051285,97528.0,97518.0,0.05129]
[1734790332383,0.48334482,97531.0,97518.0,0.05129]
[1734790332384,0.0082,97530.0,97518.0,0.41209]
[1734790332575,0.00108814,97519.0,97518.0,0.41509]
[1734790332775,0.0082,97530.0,97518.0,0.41509]
[1734790332993,0.0082,97530.0,97526.0,0.051286]
[1734790334190,0.00253872,97527.0,97526.0,0.051286]
[1734790336291,0.001,97527.0,97526.0,0.412086]
[1734790338996,0.0092,97527.0,97526.0,0.412086]
[1734790340487,0.0092,97527.0,97520.0,0.45555663]
[1734790340488,0.0080668,97527.0,97520.0,0.50684563]
[1734790340692,0.0080668,97527.0,97520.0,0.45495663]
[1734790340693,0.10483,97526.0,97520.0,0.45495663]
[1734790340996,0.10483,97526.0,97524.0,0.051287]
[1734790341192,0.02563,97526.0,97524.0,0.051287]
[1734790341600,0.02563,97526.0,97525.0,0.4257]
[1734790341787,0.01600227,97526.0,97525.0,0.5047]
[1734790343294,0.01700227,97526.0,97525.0,0.5047]
[1734790343493,0.0080668,97527.0,97526.0,0.051286]
[1734790343692,0.0080668,97527.0,97526.0,0.412086]
[1734790345097,0.0080668,97527.0,97526.0,0.42224318]
[1734790345603,0.0090668,97527.0,97526.0,0.42224318]
[1734790348197,0.0090668,97527.0,97526.0,0.06144318]
[1734790349001,0.0090668,97527.0,97526.0,0.051286]
[1734790349197,0.0090668,97527.0,97519.0,0.00999485]
[1734790349404,0.0090668,97527.0,97521.0,0.051288]
[1734790349694,0.3608,97523.0,97508.0,0.18155663]
[1734790349999,0.1009369,97520.0,97516.0,0.051291]
[1734790350198,0.1009369,97520.0,97518.0,0.05129]
[1734790350406,0.3608,97523.0,97518.0,0.05129]
[1734790350801,0.3608,97523.0,97519.0,0.003]
[1734790351204,0.3608,97523.0,97518.0,0.05129]
[1734790351402,0.001,97520.0,97518.0,0.05529]
[1734790351804,0.3618,97523.0,97522.0,0.051288]
[1734790352004,0.001,97523.0,97522.0,0.412088]
[1734790352402,0.0080668,97527.0,97526.0,0.051286]
[1734790353604,0.0090668,97527.0,97526.0,0.051286]
[1734790354410,0.0090668,97527.0,97526.0,0.412086]
[1734790354618,0.0090668,97527.0,97526.0,0.685486]
[1734790358912,0.0090668,97527.0,97526.0,0.412086]
[1734790359314,0.0006668,97527.0,97526.0,0.412086]
[1734790359611,0.0736,97549.0,97548.0,0.051274]
[1734790360314,0.09176387,97550.0,97548.0,0.051274]
[1734790360499,0.09996387,97550.0,97548.0,0.051274]
[1734790361109,0.009,97549.0,97548.0,0.412074]
[1734790361610,0.005,97549.0,97548.0,0.413074]
[1734790362409,0.005,97549.0,97548.0,0.052274]
[1734790363113,0.014,97549.0,97548.0,0.052274]
[1734790364216,0.014,97549.0,97548.0,0.0627391]
[1734790365623,0.014,97549.0,97548.0,0.052274]
[1734790374025,0.065274,97549.0,97548.0,0.001]
[1734790374221,0.090894,97549.0,97548.0,0.001]
[1734790374823,0.03962,97549.0,97548.0,0.001]
[1734790375018,0.03962,97549.0,97548.0,0.052274]
[1734790386624,0.05128,97537.0,97536.0,0.18077358]
[1734790386922,0.051282,97533.0,97532.0,0.0054547]
[1734790387233,0.051283,97531.0,97530.0,0.0054547]
[1734790388835,0.051283,97531.0,97520.0,0.051289]
[1734790388836,0.051284,97529.0,97520.0,0.051289]
[1734790389227,0.051284,97529.0,97524.0,0.051287]
[1734790390035,0.06146817,97529.0,97526.0,0.051285]
[1734790390238,0.11332544,97529.0,97526.0,0.051285]
[1734790390637,0.11332544,97529.0,97519.0,0.051289]
[1734790390832,0.06204144,97529.0,97509.0,0.051294]
[1734790391135,0.051294,97511.0,97509.0,0.051294]
[1734790391833,0.051298,97506.0,97505.0,0.051297]
[1734790392024,0.0001204,97510.0,97496.0,0.0797]
[1734790392221,0.3608,97504.0,97503.0,0.051298]
[1734790392430,0.0001204,97510.0,97509.0,0.051295]
[1734790392635,0.0001204,97510.0,97509.0,0.055295]
[1734790392827,0.0001204,97510.0,97509.0,0.057295]
[1734790393932,0.0001204,97510.0,97509.0,0.055295]
[1734790394133,0.0001204,97510.0,97509.0,0.058295]
[1734790394527,0.0011204,97510.0,97509.0,0.054295]
[1734790395038,0.0001204,97510.0,97509.0,0.0644157]
[1734790395338,0.0011204,97510.0,97509.0,0.0684157]
[1734790396230,0.3608,97520.0,97509.0,0.0684157]
[1734790396436,0.3608,97520.0,97519.0,0.05129]
[1734790397731,0.09192432,97534.0,97530.0,0.051284]
[1734790398036,0.0082,97531.0,97530.0,0.051284]
[1734790398843,0.0102,97531.0,97530.0,0.051284]
[1734790399932,0.0122,97531.0,97530.0,0.051284]
[1734790403030,0.0122,97531.0,97516.0,0.3608]
[1734790403236,0.051285,97527.0,97516.0,0.3608]
[1734790403445,0.004,97531.0,97525.0,0.051286]
[1734790403638,0.004,97531.0,97516.0,0.3608]
[1734790403844,0.004,97531.0,97529.0,0.051284]
[1734790404343,0.12256576,97533.0,97532.0,0.043083]
[1734790404542,0.12256576,97533.0,97532.0,0.403883]
[1734790405651,0.12556576,97533.0,97532.0,0.403883]
[1734790405948,0.005,97533.0,97532.0,0.403883]
[1734790407946,0.005,97533.0,97532.0,0.043083]
[1734790408446,0.005,97533.0,97532.0,0.121183]
[1734790409042,0.005,97533.0,97532.0,0.481983]
[1734790412645,0.005,97533.0,97532.0,0.121183]
[1734790414750,0.005,97533.0,97532.0,0.481983]
[1734790418738,0.005,97533.0,97532.0,0.403883]
[1734790426862,0.0132,97533.0,97532.0,0.403883]
[1734790427963,0.0132,97533.0,97532.0,0.677283]
[1734790429563,0.03883,97533.0,97532.0,0.677283]
[1734790430166,0.03883,97533.0,97532.0,0.692683]
[1734790430954,0.03883,97533.0,97532.0,0.419283]
[1734790432658,0.03883,97533.0,97532.0,0.403883]
[1734790434664,0.03883,97533.0,97532.0,0.043083]
[1734790438761,0.16172777,97533.0,97532.0,0.043083]
[1734790442072,0.03883,97533.0,97532.0,0.043083]
[1734790445672,0.12284616,97536.0,97535.0,0.051281]
[1734790445975,0.10084616,97536.0,97535.0,0.051281]
[1734790446376,0.0921184,97540.0,97539.0,0.051279]
[1734790446582,0.0921184,97540.0,97539.0,0.412079]
[1734790447681,0.0082,97541.0,97539.0,0.412079]
[1734790448083,0.0769184,97548.0,97547.0,0.025645]
[1734790448284,0.02728485,97548.0,97547.0,0.386445]
[1734790448681,0.1532072,97558.0,97547.0,0.95995899]
[1734790448877,0.03272863,97558.0,97557.0,0.41207]
[1734790449197,0.5617369,97600.0,97557.0,0.41207]
[1734790449198,0.17932202,97580.0,97578.0,0.044958]
[1734790449487,0.17932202,97580.0,97579.0,0.3608]
[1734790450578,0.2243,97593.0,97579.0,0.3608]
[1734790450579,0.2243,97593.0,97589.0,0.051252]
[1734790450780,0.2243,97593.0,97591.0,0.051251]
[1734790452187,0.2313,97593.0,97591.0,0.052251]
[1734790452390,0.2403,97593.0,97591.0,0.053251]
[1734790452887,0.2313,97593.0,97591.0,0.052251]
[1734790453075,0.2373,97593.0,97591.0,0.053251]
[1734790453988,0.2343,97593.0,97591.0,0.052251]
[1734790455877,0.1574,97593.0,97591.0,0.052251]
[1734790457390,0.0846,97593.0,97591.0,0.052251]